[Event "Titled Tuesday Blitz March 21 Early 2023"]
[White "Rose, Felix"]
[Black "Valle Maytin, Luis Enrique"]
[WhiteFideId "5105722"]
[BlackFideId "3503666"]
[WhiteElo "2039"]
[BlackElo "2225"]
[Result "0-1"]
[Round "07"]
[TimeControl "180+2"]
[Date "2023.03.21"]
[WhiteClock "0:00:02"]
[BlackClock "0:00:17"]

1. d4 {[%clk 0:03:00]}  Nf6 {[%clk 0:02:56]} 2. Nc3 {[%clk 0:03:00]}  d5 {[%clk 0:02:55]} 3. Bf4 {[%clk 0:03:00]}  c6 {[%clk 0:02:55]} 4. e3 {[%clk 0:02:59]}  h6 {[%clk 0:02:53]} 5. Bd3 {[%clk 0:02:58]}  Bg4 {[%clk 0:02:51]} 6. f3 {[%clk 0:02:55]}  Be6 {[%clk 0:02:49]} 7. Nge2 {[%clk 0:02:54]}  g6 {[%clk 0:02:49]} 8. h4 {[%clk 0:02:53]}  Bg7 {[%clk 0:02:49]} 9. Qd2 {[%clk 0:02:52]}  a5 {[%clk 0:02:47]} 10. g4 {[%clk 0:02:51]}  b5 {[%clk 0:02:46]} 11. Ng3 {[%clk 0:02:50]}  a4 {[%clk 0:02:44]} 12. a3 {[%clk 0:02:46]}  Nbd7 {[%clk 0:02:44]} 13. O-O-O {[%clk 0:02:39]}  Qb6 {[%clk 0:02:43]} 14. g5 {[%clk 0:02:26]}  Ng8 {[%clk 0:02:31]} 15. Nce2 {[%clk 0:02:15]}  h5 {[%clk 0:02:30]} 16. e4 {[%clk 0:02:12]}  dxe4 {[%clk 0:02:25]} 17. fxe4 {[%clk 0:01:58]}  Bg4 {[%clk 0:02:25]} 18. e5 {[%clk 0:01:52]}  e6 {[%clk 0:02:23]} 19. Be3 {[%clk 0:01:48]}  Ne7 {[%clk 0:02:13]} 20. Ne4 {[%clk 0:01:40]}  Nf5 {[%clk 0:02:05]} 21. Bf2 {[%clk 0:01:33]}  Bxe2 {[%clk 0:02:05]} 22. Bxe2 {[%clk 0:01:27]}  Qc7 {[%clk 0:01:59]} 23. Qb4 {[%clk 0:01:21]}  Bf8 {[%clk 0:01:56]} 24. Qc3 {[%clk 0:01:19]}  Qb7 {[%clk 0:01:42]} 25. Bf3 {[%clk 0:00:51]}  Ra6 {[%clk 0:01:26]} 26. Nc5 {[%clk 0:00:40]}  Nxc5 {[%clk 0:00:55]} 27. dxc5 {[%clk 0:00:41]}  Bg7 {[%clk 0:00:51]} 28. Be4 {[%clk 0:00:24]}  O-O {[%clk 0:00:42]} 29. Bxf5 {[%clk 0:00:24]}  exf5 {[%clk 0:00:42]} 30. Rhe1 {[%clk 0:00:23]}  Re8 {[%clk 0:00:41]} 31. Rd6 {[%clk 0:00:23]}  Raa8 {[%clk 0:00:37]} 32. Bd4 {[%clk 0:00:22]}  Re6 {[%clk 0:00:36]} 33. Re3 {[%clk 0:00:19]}  Rae8 {[%clk 0:00:35]} 34. Rxe6 {[%clk 0:00:19]}  fxe6 {[%clk 0:00:34]} 35. b4 {[%clk 0:00:19]}  Rd8 {[%clk 0:00:34]} 36. Kb2 {[%clk 0:00:18]}  Kf7 {[%clk 0:00:34]} 37. Rd3 {[%clk 0:00:17]}  Rd5 {[%clk 0:00:34]} 38. Qe1 {[%clk 0:00:13]}  Qd7 {[%clk 0:00:33]} 39. c3 {[%clk 0:00:14]}  Qc7 {[%clk 0:00:33]} 40. Re3 {[%clk 0:00:13]}  Qd7 {[%clk 0:00:32]} 41. Qe2 {[%clk 0:00:11]}  Kg8 {[%clk 0:00:24]} 42. Qd3 {[%clk 0:00:10]}  Kh7 {[%clk 0:00:24]} 43. Qc2 {[%clk 0:00:09]}  Rxd4 {[%clk 0:00:23]} 44. cxd4 {[%clk 0:00:09]}  Qxd4+ {[%clk 0:00:24]} 45. Qc3 {[%clk 0:00:10]}  Qxh4 {[%clk 0:00:24]} 46. Qd3 {[%clk 0:00:08]}  Qxg5 {[%clk 0:00:24]} 47. Kc3 {[%clk 0:00:06]}  Qf4 {[%clk 0:00:23]} 48. Rf3 {[%clk 0:00:06]}  Qxe5+ {[%clk 0:00:22]} 49. Kd2 {[%clk 0:00:06]}  Qb2+ {[%clk 0:00:21]} 50. Kd1 {[%clk 0:00:06]}  Qa1+ {[%clk 0:00:19]} 51. Ke2 {[%clk 0:00:06]}  e5 {[%clk 0:00:18]} 52. Rg3 {[%clk 0:00:02]}  e4 {[%clk 0:00:17]} 0-1


[Site "https://www.chess.com"]

[Event "Titled Tuesday Blitz March 21 Early 2023"]
[White "Hernandez Bonilla, Amelia"]
[Black "Bhavikatti, Neil"]
[WhiteFideId "3900193"]
[BlackFideId "30935024"]
[WhiteElo "2188"]
[BlackElo "2337"]
[Result "0-1"]
[Round "07"]
[TimeControl "180+2"]
[Date "2023.03.21"]
[WhiteClock "0:00:51"]
[BlackClock "0:00:48"]

1. d4 {[%clk 0:03:00]}  d5 {[%clk 0:02:59]} 2. Bf4 {[%clk 0:03:00]}  Nf6 {[%clk 0:02:57]} 3. e3 {[%clk 0:03:00]}  e6 {[%clk 0:02:57]} 4. Nf3 {[%clk 0:03:00]}  Bd6 {[%clk 0:02:58]} 5. Ne5 {[%clk 0:03:01]}  O-O {[%clk 0:02:56]} 6. Bd3 {[%clk 0:03:00]}  c5 {[%clk 0:02:56]} 7. c3 {[%clk 0:03:01]}  Qc7 {[%clk 0:02:44]} 8. Bg3 {[%clk 0:02:59]}  Nfd7 {[%clk 0:02:40]} 9. f4 {[%clk 0:02:51]}  f5 {[%clk 0:02:29]} 10. Nd2 {[%clk 0:02:49]}  Nxe5 {[%clk 0:02:29]} 11. fxe5 {[%clk 0:02:48]}  Be7 {[%clk 0:02:29]} 12. O-O {[%clk 0:02:47]}  b6 {[%clk 0:02:27]} 13. Kh1 {[%clk 0:02:38]}  Ba6 {[%clk 0:02:27]} 14. Bxa6 {[%clk 0:02:36]}  Nxa6 {[%clk 0:02:28]} 15. Qh5 {[%clk 0:02:27]}  b5 {[%clk 0:02:25]} 16. Nf3 {[%clk 0:02:22]}  b4 {[%clk 0:02:19]} 17. Bh4 {[%clk 0:02:16]}  bxc3 {[%clk 0:02:13]} 18. bxc3 {[%clk 0:02:14]}  Bxh4 {[%clk 0:02:05]} 19. Qxh4 {[%clk 0:02:15]}  h6 {[%clk 0:01:56]} 20. Rac1 {[%clk 0:01:51]}  Rab8 {[%clk 0:01:48]} 21. Rc2 {[%clk 0:01:48]}  Rb6 {[%clk 0:01:41]} 22. g4 {[%clk 0:01:44]}  fxg4 {[%clk 0:01:38]} 23. Qxg4 {[%clk 0:01:44]}  Qf7 {[%clk 0:01:24]} 24. Rcf2 {[%clk 0:01:41]}  Qf5 {[%clk 0:01:06]} 25. Qg2 {[%clk 0:01:34]}  Qe4 {[%clk 0:01:04]} 26. Rg1 {[%clk 0:01:30]}  Rb7 {[%clk 0:00:59]} 27. Nd2 {[%clk 0:01:00]}  Rxf2 {[%clk 0:00:49]} 28. Nxe4 {[%clk 0:00:51]}  Rxg2 {[%clk 0:00:48]} 0-1


[Site "https://www.chess.com"]

[Event "Titled Tuesday Blitz March 21 Early 2023"]
[White "Kraus, Tomas"]
[Black "salgadoLO"]
[WhiteFideId "331708"]
[WhiteElo "2389"]
[BlackElo "2186"]
[Result "0-1"]
[Round "07"]
[TimeControl "180+2"]
[Date "2023.03.21"]
[WhiteClock "0:00:07"]
[BlackClock "0:00:17"]

1. e4 {[%clk 0:03:00]}  c5 {[%clk 0:02:55]} 2. Nc3 {[%clk 0:03:00]}  a6 {[%clk 0:02:54]} 3. f4 {[%clk 0:03:00]}  b5 {[%clk 0:02:54]} 4. Nf3 {[%clk 0:03:00]}  Bb7 {[%clk 0:02:54]} 5. d3 {[%clk 0:03:00]}  e6 {[%clk 0:02:53]} 6. g3 {[%clk 0:03:00]}  d5 {[%clk 0:02:53]} 7. Bg2 {[%clk 0:02:58]}  b4 {[%clk 0:02:50]} 8. Ne2 {[%clk 0:02:47]}  dxe4 {[%clk 0:02:50]} 9. Ng5 {[%clk 0:02:47]}  Nf6 {[%clk 0:02:48]} 10. Nxe4 {[%clk 0:02:43]}  Nxe4 {[%clk 0:02:46]} 11. Bxe4 {[%clk 0:02:43]}  Bxe4 {[%clk 0:02:45]} 12. dxe4 {[%clk 0:02:43]}  Qxd1+ {[%clk 0:02:45]} 13. Kxd1 {[%clk 0:02:44]}  Nc6 {[%clk 0:02:40]} 14. Be3 {[%clk 0:02:43]}  Be7 {[%clk 0:02:34]} 15. Ke1 {[%clk 0:02:31]}  O-O-O {[%clk 0:02:30]} 16. Kf2 {[%clk 0:02:28]}  Rd7 {[%clk 0:02:09]} 17. a3 {[%clk 0:02:25]}  Kb7 {[%clk 0:02:04]} 18. a4 {[%clk 0:02:06]}  Na5 {[%clk 0:01:53]} 19. Rad1 {[%clk 0:01:37]}  Rhd8 {[%clk 0:01:50]} 20. Rxd7+ {[%clk 0:01:30]}  Rxd7 {[%clk 0:01:50]} 21. Nc1 {[%clk 0:01:30]}  Nc4 {[%clk 0:01:39]} 22. b3 {[%clk 0:01:29]}  Nxe3 {[%clk 0:01:35]} 23. Kxe3 {[%clk 0:01:29]}  c4 {[%clk 0:01:29]} 24. Ke2 {[%clk 0:01:24]}  cxb3 {[%clk 0:01:17]} 25. Nxb3 {[%clk 0:01:19]}  Rc7 {[%clk 0:01:14]} 26. Kd2 {[%clk 0:01:16]}  Rc3 {[%clk 0:01:06]} 27. Re1 {[%clk 0:01:10]}  e5 {[%clk 0:01:01]} 28. Re3 {[%clk 0:01:03]}  exf4 {[%clk 0:00:56]} 29. gxf4 {[%clk 0:01:00]}  Rxe3 {[%clk 0:00:46]} 30. Kxe3 {[%clk 0:01:01]}  Kc6 {[%clk 0:00:46]} 31. Kd4 {[%clk 0:01:00]}  Bd6 {[%clk 0:00:37]} 32. e5 {[%clk 0:00:58]}  Bc7 {[%clk 0:00:36]} 33. Kc4 {[%clk 0:00:54]}  f6 {[%clk 0:00:33]} 34. Nd4+ {[%clk 0:00:44]}  Kd7 {[%clk 0:00:29]} 35. exf6 {[%clk 0:00:29]}  gxf6 {[%clk 0:00:28]} 36. f5 {[%clk 0:00:29]}  Bxh2 {[%clk 0:00:27]} 37. Kxb4 {[%clk 0:00:29]}  h5 {[%clk 0:00:25]} 38. Kc5 {[%clk 0:00:25]}  Bg1 {[%clk 0:00:22]} 39. Kd5 {[%clk 0:00:20]}  Bxd4 {[%clk 0:00:20]} 40. Kxd4 {[%clk 0:00:20]}  Kd6 {[%clk 0:00:21]} 41. c4 {[%clk 0:00:19]}  a5 {[%clk 0:00:19]} 42. Ke4 {[%clk 0:00:06]}  Kc5 {[%clk 0:00:18]} 43. Kf4 {[%clk 0:00:07]}  Kxc4 {[%clk 0:00:17]} 44. Kg3 {[%clk 0:00:07]}  Kd5 {[%clk 0:00:17]} 45. Kh4 {[%clk 0:00:08]}  Ke5 {[%clk 0:00:17]} 46. Kxh5 {[%clk 0:00:07]}  Kxf5 {[%clk 0:00:17]} 0-1


[Site "https://www.chess.com"]

[Event "Titled Tuesday Blitz March 21 Early 2023"]
[White "Piesik, Piotr"]
[Black "Simonovic, Miroslav"]
[WhiteFideId "1136194"]
[BlackFideId "919152"]
[WhiteElo "2311"]
[BlackElo "2042"]
[Result "1/2-1/2"]
[Round "07"]
[TimeControl "180+2"]
[Date "2023.03.21"]
[WhiteClock "0:00:09"]
[BlackClock "0:00:06"]

1. Nf3 {[%clk 0:02:38]}  c5 {[%clk 0:02:59]} 2. g3 {[%clk 0:02:38]}  Nc6 {[%clk 0:03:00]} 3. Bg2 {[%clk 0:02:38]}  g6 {[%clk 0:03:01]} 4. O-O {[%clk 0:02:39]}  Bg7 {[%clk 0:03:01]} 5. c3 {[%clk 0:02:40]}  e5 {[%clk 0:03:01]} 6. e4 {[%clk 0:02:40]}  Nge7 {[%clk 0:03:02]} 7. Na3 {[%clk 0:02:40]}  O-O {[%clk 0:03:01]} 8. d4 {[%clk 0:02:40]}  cxd4 {[%clk 0:02:56]} 9. cxd4 {[%clk 0:02:41]}  Nxd4 {[%clk 0:02:54]} 10. Nxd4 {[%clk 0:02:41]}  exd4 {[%clk 0:02:55]} 11. Bf4 {[%clk 0:02:40]}  d5 {[%clk 0:02:54]} 12. e5 {[%clk 0:02:40]}  Nc6 {[%clk 0:02:51]} 13. Re1 {[%clk 0:02:38]}  Re8 {[%clk 0:02:47]} 14. Qb3 {[%clk 0:02:34]}  Qb6 {[%clk 0:02:00]} 15. Bxd5 {[%clk 0:02:14]}  Qxb3 {[%clk 0:01:59]} 16. axb3 {[%clk 0:02:15]}  Be6 {[%clk 0:01:56]} 17. Bxe6 {[%clk 0:02:04]}  Rxe6 {[%clk 0:01:57]} 18. Nb5 {[%clk 0:02:04]}  Bxe5 {[%clk 0:01:53]} 19. Bxe5 {[%clk 0:01:58]}  Rxe5 {[%clk 0:01:54]} 20. Rxe5 {[%clk 0:01:57]}  Nxe5 {[%clk 0:01:55]} 21. Nxd4 {[%clk 0:01:56]}  Rd8 {[%clk 0:01:47]} 22. Nb5 {[%clk 0:01:56]}  a6 {[%clk 0:01:45]} 23. Nc3 {[%clk 0:01:55]}  Rd2 {[%clk 0:01:36]} 24. Na4 {[%clk 0:01:45]}  Nd3 {[%clk 0:01:33]} 25. Rf1 {[%clk 0:01:40]}  b5 {[%clk 0:01:29]} 26. Nc3 {[%clk 0:01:38]}  Rxb2 {[%clk 0:01:23]} 27. Rd1 {[%clk 0:01:32]}  Nxf2 {[%clk 0:01:20]} 28. Rd6 {[%clk 0:01:31]}  Nh3+ {[%clk 0:01:08]} 29. Kh1 {[%clk 0:01:30]}  Rxb3 {[%clk 0:01:06]} 30. Ne4 {[%clk 0:01:26]}  Re3 {[%clk 0:00:41]} 31. Nc5 {[%clk 0:01:13]}  a5 {[%clk 0:00:37]} 32. Rb6 {[%clk 0:01:09]}  b4 {[%clk 0:00:33]} 33. Rb5 {[%clk 0:01:09]}  Ra3 {[%clk 0:00:31]} 34. Kg2 {[%clk 0:00:43]}  Ng5 {[%clk 0:00:31]} 35. Nb7 {[%clk 0:00:43]}  Ra2+ {[%clk 0:00:22]} 36. Kh1 {[%clk 0:00:43]}  Ne4 {[%clk 0:00:11]} 37. Nxa5 {[%clk 0:00:40]}  Nf2+ {[%clk 0:00:10]} 38. Kg1 {[%clk 0:00:37]}  Nd3 {[%clk 0:00:11]} 39. Nc6 {[%clk 0:00:34]}  Rc2 {[%clk 0:00:09]} 40. Nxb4 {[%clk 0:00:32]}  Rb2 {[%clk 0:00:09]} 41. Rb8+ {[%clk 0:00:32]}  Kg7 {[%clk 0:00:09]} 42. Nc6 {[%clk 0:00:33]}  Rxb8 {[%clk 0:00:08]} 43. Nxb8 {[%clk 0:00:34]}  h5 {[%clk 0:00:08]} 44. Nc6 {[%clk 0:00:33]}  Kf6 {[%clk 0:00:08]} 45. Kg2 {[%clk 0:00:32]}  Kf5 {[%clk 0:00:08]} 46. h3 {[%clk 0:00:24]}  Ke6 {[%clk 0:00:05]} 47. Nd8+ {[%clk 0:00:21]}  Ke7 {[%clk 0:00:05]} 48. Nc6+ {[%clk 0:00:22]}  Kd6 {[%clk 0:00:05]} 49. Nd8 {[%clk 0:00:20]}  f6 {[%clk 0:00:06]} 50. Kf3 {[%clk 0:00:16]}  Nc5 {[%clk 0:00:06]} 51. Kf4 {[%clk 0:00:11]}  Kd7 {[%clk 0:00:06]} 52. Nf7 {[%clk 0:00:11]}  Ke7 {[%clk 0:00:06]} 53. Nh8 {[%clk 0:00:10]}  g5+ {[%clk 0:00:05]} 54. Kf5 {[%clk 0:00:10]}  Ne6 {[%clk 0:00:03]} 55. Kg6 {[%clk 0:00:09]}  h4 {[%clk 0:00:03]} 56. gxh4 {[%clk 0:00:09]}  gxh4 {[%clk 0:00:04]} 57. Kh5 {[%clk 0:00:09]}  Nf4+ {[%clk 0:00:04]} 58. Kxh4 {[%clk 0:00:09]}  Nxh3 {[%clk 0:00:05]} 59. Kxh3 {[%clk 0:00:09]}  f5 {[%clk 0:00:05]} 60. Kg3 {[%clk 0:00:09]}  f4+ {[%clk 0:00:06]} 61. Kxf4 {[%clk 0:00:09]} 1/2-1/2


[Site "https://www.chess.com"]

[Event "Titled Tuesday Blitz March 21 Early 2023"]
[White "Blomqvist, Erik"]
[Black "Fabris, Alberto"]
[WhiteFideId "1709437"]
[BlackFideId "801348"]
[WhiteElo "2436"]
[BlackElo "2195"]
[Result "1-0"]
[Round "07"]
[TimeControl "180+2"]
[Date "2023.03.21"]
[WhiteClock "0:01:34"]
[BlackClock "0:01:22"]

1. e4 {[%clk 0:03:00]}  c5 {[%clk 0:02:59]} 2. Nf3 {[%clk 0:03:00]}  d6 {[%clk 0:02:59]} 3. d4 {[%clk 0:02:55]}  cxd4 {[%clk 0:03:00]} 4. Nxd4 {[%clk 0:02:55]}  Nf6 {[%clk 0:03:00]} 5. Nc3 {[%clk 0:02:55]}  a6 {[%clk 0:03:01]} 6. Be2 {[%clk 0:02:55]}  e5 {[%clk 0:02:59]} 7. Nb3 {[%clk 0:02:56]}  Be7 {[%clk 0:02:59]} 8. Be3 {[%clk 0:02:56]}  O-O {[%clk 0:02:58]} 9. g4 {[%clk 0:02:56]}  Be6 {[%clk 0:02:54]} 10. g5 {[%clk 0:02:56]}  Nfd7 {[%clk 0:02:54]} 11. Qd2 {[%clk 0:02:52]}  Nc6 {[%clk 0:02:49]} 12. O-O-O {[%clk 0:02:45]}  Na5 {[%clk 0:02:44]} 13. Nd5 {[%clk 0:02:37]}  Nxb3+ {[%clk 0:02:44]} 14. axb3 {[%clk 0:02:36]}  Bxd5 {[%clk 0:02:35]} 15. exd5 {[%clk 0:02:28]}  Qc7 {[%clk 0:02:30]} 16. Kb1 {[%clk 0:02:28]}  b5 {[%clk 0:02:29]} 17. h4 {[%clk 0:02:28]}  Nc5 {[%clk 0:02:24]} 18. f4 {[%clk 0:02:23]}  exf4 {[%clk 0:02:21]} 19. Bxf4 {[%clk 0:02:16]}  Rfe8 {[%clk 0:02:17]} 20. h5 {[%clk 0:02:14]}  Bf8 {[%clk 0:02:17]} 21. g6 {[%clk 0:02:05]}  fxg6 {[%clk 0:02:10]} 22. hxg6 {[%clk 0:02:05]}  h6 {[%clk 0:02:10]} 23. Bg4 {[%clk 0:02:04]}  Qe7 {[%clk 0:01:55]} 24. Rdf1 {[%clk 0:01:54]}  Qe4 {[%clk 0:01:48]} 25. b4 {[%clk 0:01:47]}  Na4 {[%clk 0:01:33]} 26. Be6+ {[%clk 0:01:41]}  Kh8 {[%clk 0:01:33]} 27. Bxh6 {[%clk 0:01:38]}  Rxe6 {[%clk 0:01:25]} 28. Bxg7+ {[%clk 0:01:34]}  Kxg7 {[%clk 0:01:22]} 29. Qh6+ {[%clk 0:01:34]} 1-0


[Site "https://www.chess.com"]

[Event "Titled Tuesday Blitz March 21 Early 2023"]
[White "Bethke, Richard"]
[Black "Sanchez, Robert"]
[WhiteFideId "12959243"]
[BlackFideId "2034360"]
[WhiteElo "2369"]
[BlackElo "2173"]
[Result "1-0"]
[Round "07"]
[TimeControl "180+2"]
[Date "2023.03.21"]
[WhiteClock "0:02:12"]
[BlackClock "0:01:25"]

1. e4 {[%clk 0:02:59]}  d5 {[%clk 0:03:00]} 2. exd5 {[%clk 0:02:59]}  Qxd5 {[%clk 0:03:01]} 3. Nc3 {[%clk 0:02:57]}  Qe6+ {[%clk 0:03:01]} 4. Be2 {[%clk 0:02:56]}  Qg6 {[%clk 0:03:01]} 5. Bf3 {[%clk 0:02:55]}  Nc6 {[%clk 0:03:01]} 6. d4 {[%clk 0:02:55]}  Bf5 {[%clk 0:03:01]} 7. Nb5 {[%clk 0:02:52]}  O-O-O {[%clk 0:02:50]} 8. c3 {[%clk 0:02:51]}  Kb8 {[%clk 0:02:49]} 9. Bf4 {[%clk 0:02:48]}  e5 {[%clk 0:02:47]} 10. Bxc6 {[%clk 0:02:47]}  Qxc6 {[%clk 0:02:47]} 11. Nxa7 {[%clk 0:02:44]}  Kxa7 {[%clk 0:02:35]} 12. Bxe5 {[%clk 0:02:43]}  Qxg2 {[%clk 0:02:31]} 13. Bxc7 {[%clk 0:02:42]}  Re8+ {[%clk 0:02:12]} 14. Kd2 {[%clk 0:02:40]}  Qc6 {[%clk 0:01:56]} 15. Bf4 {[%clk 0:02:34]}  Nf6 {[%clk 0:01:44]} 16. Nf3 {[%clk 0:02:28]}  Ne4+ {[%clk 0:01:42]} 17. Kc1 {[%clk 0:02:26]}  Nxf2 {[%clk 0:01:43]} 18. Qb3 {[%clk 0:02:12]}  Qxc3+ {[%clk 0:01:25]} 1-0


[Site "https://www.chess.com"]

[Event "Titled Tuesday Blitz March 21 Early 2023"]
[White "Sarkar, Justin"]
[Black "lluiss"]
[WhiteFideId "2010011"]
[WhiteElo "2189"]
[BlackElo "2156"]
[Result "1-0"]
[Round "07"]
[TimeControl "180+2"]
[Date "2023.03.21"]
[WhiteClock "0:00:04"]
[BlackClock "0:00:17"]

1. e4 {[%clk 0:02:36]}  c5 {[%clk 0:02:59]} 2. Nf3 {[%clk 0:02:35]}  d6 {[%clk 0:02:59]} 3. d4 {[%clk 0:02:34]}  cxd4 {[%clk 0:02:59]} 4. Nxd4 {[%clk 0:02:35]}  Nf6 {[%clk 0:02:58]} 5. Nc3 {[%clk 0:02:35]}  g6 {[%clk 0:02:59]} 6. Be3 {[%clk 0:02:30]}  Bg7 {[%clk 0:02:59]} 7. f3 {[%clk 0:02:26]}  O-O {[%clk 0:02:58]} 8. Qd2 {[%clk 0:02:23]}  Nc6 {[%clk 0:02:58]} 9. Bc4 {[%clk 0:02:16]}  Bd7 {[%clk 0:02:57]} 10. O-O-O {[%clk 0:02:10]}  Ne5 {[%clk 0:02:55]} 11. Bb3 {[%clk 0:02:02]}  Qa5 {[%clk 0:02:55]} 12. Kb1 {[%clk 0:01:58]}  Rfc8 {[%clk 0:02:54]} 13. h4 {[%clk 0:01:43]}  Rc5 {[%clk 0:02:53]} 14. h5 {[%clk 0:01:28]}  Rxc3 {[%clk 0:02:52]} 15. bxc3 {[%clk 0:01:05]}  Nxh5 {[%clk 0:02:51]} 16. Bh6 {[%clk 0:00:26]}  Rc8 {[%clk 0:02:33]} 17. Rxh5 {[%clk 0:00:18]}  Nc4 {[%clk 0:01:08]} 18. Bxc4 {[%clk 0:00:16]}  Qxh5 {[%clk 0:01:06]} 19. Bxg7 {[%clk 0:00:15]}  Kxg7 {[%clk 0:01:06]} 20. Bb3 {[%clk 0:00:14]}  Qc5 {[%clk 0:01:03]} 21. Ne2 {[%clk 0:00:13]}  Be6 {[%clk 0:01:02]} 22. Qd4+ {[%clk 0:00:13]}  Kg8 {[%clk 0:00:58]} 23. Qxc5 {[%clk 0:00:13]}  Rxc5 {[%clk 0:00:58]} 24. Kb2 {[%clk 0:00:13]}  Rh5 {[%clk 0:00:55]} 25. Nd4 {[%clk 0:00:13]}  Bxb3 {[%clk 0:00:53]} 26. axb3 {[%clk 0:00:12]}  Rh2 {[%clk 0:00:48]} 27. Rd2 {[%clk 0:00:12]}  h5 {[%clk 0:00:47]} 28. c4 {[%clk 0:00:12]}  a6 {[%clk 0:00:47]} 29. Kc3 {[%clk 0:00:12]}  h4 {[%clk 0:00:47]} 30. b4 {[%clk 0:00:11]}  e5 {[%clk 0:00:44]} 31. Nb3 {[%clk 0:00:11]}  h3 {[%clk 0:00:43]} 32. gxh3 {[%clk 0:00:10]}  Rxh3 {[%clk 0:00:43]} 33. Rd3 {[%clk 0:00:10]}  f5 {[%clk 0:00:43]} 34. Na5 {[%clk 0:00:07]}  b6 {[%clk 0:00:36]} 35. Nb7 {[%clk 0:00:07]}  Kf7 {[%clk 0:00:33]} 36. Nxd6+ {[%clk 0:00:07]}  Ke6 {[%clk 0:00:33]} 37. Nc8 {[%clk 0:00:06]}  b5 {[%clk 0:00:33]} 38. cxb5 {[%clk 0:00:06]}  axb5 {[%clk 0:00:34]} 39. Na7 {[%clk 0:00:05]}  f4 {[%clk 0:00:31]} 40. Nxb5 {[%clk 0:00:05]}  g5 {[%clk 0:00:32]} 41. Nc7+ {[%clk 0:00:05]}  Kf7 {[%clk 0:00:29]} 42. b5 {[%clk 0:00:05]}  Rh8 {[%clk 0:00:25]} 43. b6 {[%clk 0:00:05]}  Rb8 {[%clk 0:00:25]} 44. Nd5 {[%clk 0:00:05]}  Ke6 {[%clk 0:00:23]} 45. Kc4 {[%clk 0:00:05]}  Kd6 {[%clk 0:00:22]} 46. Kb5 {[%clk 0:00:05]}  Ke6 {[%clk 0:00:21]} 47. Kc6 {[%clk 0:00:05]}  Rh8 {[%clk 0:00:19]} 48. b7 {[%clk 0:00:05]}  Rg8 {[%clk 0:00:18]} 49. Kb6 {[%clk 0:00:04]}  g4 {[%clk 0:00:19]} 50. fxg4 {[%clk 0:00:04]}  f3 {[%clk 0:00:19]} 51. Rxf3 {[%clk 0:00:04]}  Kd7 {[%clk 0:00:19]} 52. Rf7+ {[%clk 0:00:04]}  Ke6 {[%clk 0:00:18]} 53. Rf6+ {[%clk 0:00:04]}  Kd7 {[%clk 0:00:17]} 54. Ka7 {[%clk 0:00:04]} 1-0


[Site "https://www.chess.com"]

[Event "Titled Tuesday Blitz March 21 Early 2023"]
[White "Rodriguez Santiago, Jaime"]
[Black "Vargas Rodriguez, Wilver"]
[WhiteFideId "3100898"]
[BlackFideId "3509672"]
[WhiteElo "2025"]
[BlackElo "2238"]
[Result "1/2-1/2"]
[Round "07"]
[TimeControl "180+2"]
[Date "2023.03.21"]
[WhiteClock "0:00:21"]
[BlackClock "0:00:10"]

1. c4 {[%clk 0:03:00]}  Nf6 {[%clk 0:02:59]} 2. Nc3 {[%clk 0:02:59]}  g6 {[%clk 0:02:59]} 3. g3 {[%clk 0:02:55]}  Bg7 {[%clk 0:02:58]} 4. Bg2 {[%clk 0:02:55]}  O-O {[%clk 0:02:58]} 5. e4 {[%clk 0:02:53]}  e5 {[%clk 0:02:54]} 6. Nge2 {[%clk 0:02:52]}  c5 {[%clk 0:02:53]} 7. d3 {[%clk 0:02:50]}  d6 {[%clk 0:02:53]} 8. O-O {[%clk 0:02:49]}  Nc6 {[%clk 0:02:49]} 9. h3 {[%clk 0:02:50]}  Be6 {[%clk 0:02:47]} 10. Kh2 {[%clk 0:02:44]}  Nd4 {[%clk 0:02:36]} 11. Be3 {[%clk 0:02:42]}  Qd7 {[%clk 0:02:29]} 12. f4 {[%clk 0:02:28]}  Rab8 {[%clk 0:02:09]} 13. Rb1 {[%clk 0:02:12]}  b5 {[%clk 0:02:01]} 14. cxb5 {[%clk 0:02:04]}  Nxb5 {[%clk 0:01:58]} 15. Nxb5 {[%clk 0:02:00]}  Rxb5 {[%clk 0:01:57]} 16. Nc3 {[%clk 0:02:00]}  Rb7 {[%clk 0:01:52]} 17. f5 {[%clk 0:01:55]}  gxf5 {[%clk 0:01:31]} 18. exf5 {[%clk 0:01:54]}  Bxa2 {[%clk 0:01:24]} 19. Nxa2 {[%clk 0:01:50]}  d5 {[%clk 0:01:22]} 20. Bg5 {[%clk 0:01:47]}  Rfb8 {[%clk 0:01:16]} 21. Rf2 {[%clk 0:01:35]}  h6 {[%clk 0:01:03]} 22. Bxf6 {[%clk 0:01:23]}  Bxf6 {[%clk 0:01:02]} 23. Nc3 {[%clk 0:01:23]}  e4 {[%clk 0:00:31]} 24. Ne2 {[%clk 0:00:42]}  e3 {[%clk 0:00:21]} 25. Rf3 {[%clk 0:00:39]}  d4 {[%clk 0:00:20]} 26. Rf4 {[%clk 0:00:38]}  Rxb2 {[%clk 0:00:18]} 27. Rxb2 {[%clk 0:00:37]}  Rxb2 {[%clk 0:00:19]} 28. Nc1 {[%clk 0:00:35]}  Qb7 {[%clk 0:00:13]} 29. Re4 {[%clk 0:00:34]}  Kh7 {[%clk 0:00:11]} 30. Kh1 {[%clk 0:00:34]}  Qb4 {[%clk 0:00:09]} 31. Qh5 {[%clk 0:00:19]}  Qe1+ {[%clk 0:00:09]} 32. Kh2 {[%clk 0:00:20]}  Rxg2+ {[%clk 0:00:08]} 33. Kxg2 {[%clk 0:00:20]}  Qf2+ {[%clk 0:00:09]} 34. Kh1 {[%clk 0:00:18]}  Qf1+ {[%clk 0:00:09]} 35. Kh2 {[%clk 0:00:19]}  Qf2+ {[%clk 0:00:09]} 36. Kh1 {[%clk 0:00:19]}  Qf1+ {[%clk 0:00:09]} 37. Kh2 {[%clk 0:00:20]}  Qf2+ {[%clk 0:00:10]} 38. Kh1 {[%clk 0:00:21]} 1/2-1/2


[Site "https://www.chess.com"]